bitfinex/quotes_SOLUSD_20260119
["timestamp","ask_amount","ask_price","bid_price","bid_amount"]
[1768789053774,4.43578587,133.66,133.63,4.29964643]
[1768789053944,4.43578587,133.66,133.61,7.31094609]
[1768789054365,4.43578587,133.66,133.61,4.29964643]
[1768789054544,4.43578587,133.66,133.61,7.31094609]
[1768789055563,4.43578587,133.66,133.62,7.48380724]
[1768789055758,4.43578587,133.65,133.62,7.48380724]
[1768789055975,11.91763844,133.66,133.63,4.29964643]
[1768789056161,11.91763844,133.66,133.63,7.31094609]
[1768789056864,4.43578587,133.65,133.62,7.31094609]
[1768789058974,4.49851457,133.66,133.63,4.09190731]
[1768789059165,11.97929975,133.68,133.65,4.09190731]
[1768789059544,11.97929975,133.68,133.64,7.10320697]
[1768789060150,11.97929975,133.68,133.65,4.09190731]
[1768789060652,11.97929975,133.68,133.64,7.10320697]
[1768789066668,4.49851457,133.68,133.65,4.09190731]
[1768789066970,4.49851457,133.66,133.61,4.09190731]
[1768789067275,4.49851457,133.66,133.62,4.09190731]
[1768789067471,4.49851457,133.66,133.63,4.09190731]
[1768789068373,4.49851457,133.66,133.63,7.10320697]
[1768789071775,4.49851457,133.67,133.64,7.10320697]
[1768789072281,4.49851457,133.68,133.65,7.10320697]
[1768789074377,4.49851457,133.68,133.66,3.01129966]
[1768789074851,7.68006772,133.69,133.67,4.40344245]
[1768789075055,11.95843565,133.69,133.66,3.01129966]
[1768789075379,4.27836793,133.68,133.66,3.01129966]
[1768789075877,11.95843565,133.69,133.66,7.41474211]
[1768789076170,4.47836793,133.69,133.66,7.41474211]
[1768789076378,4.47836793,133.69,133.67,3.01129966]
[1768789076559,4.27836793,133.7,133.68,3.01129966]
[1768789077961,4.27836793,133.7,133.67,4.40344245]
[1768789078166,4.27836793,133.7,133.68,3.01129966]
[1768789079475,7.4797016,133.7,133.67,3.01129966]
[1768789079680,4.27836793,133.69,133.65,11.88543737]
[1768789079880,4.27836793,133.69,133.66,7.41474211]
[1768789080978,4.27836793,133.68,133.66,3.01129966]
[1768789081176,4.27836793,133.68,133.64,7.41474211]
[1768789081553,4.27836793,133.68,133.65,3.01129966]
[1768789081770,4.27836793,133.68,133.65,7.41474211]
[1768789084482,4.27836793,133.67,133.64,7.41474211]
[1768789084876,4.27836793,133.67,133.64,14.89649752]
[1768789086596,4.27836793,133.67,133.65,3.01047519]
[1768789087685,11.75970897,133.67,133.63,4.40344245]
[1768789087867,11.75970897,133.67,133.64,3.01047519]
[1768789088568,11.75970897,133.67,133.65,3.01047519]
[1768789091474,7.48078642,133.68,133.65,3.01047519]
[1768789091672,4.27836793,133.67,133.65,3.01047519]
[1768789092384,4.27836793,133.69,133.66,3.01047519]
[1768789092887,4.27836793,133.69,133.67,3.01047519]
[1768789093484,11.75837736,133.69,133.67,3.01047519]
[1768789094685,114.85799511,133.7,133.68,3.01047519]
[1768789095387,107.37836793,133.7,133.68,3.01047519]
[1768789095574,107.37836793,133.7,133.69,3.01047519]
[1768789095887,4.27836793,133.7,133.68,3.01047519]
[1768789096277,11.75782335,133.7,133.68,3.01047519]
[1768789096478,11.75782335,133.7,133.66,11.88511224]
[1768789096681,4.27836793,133.69,133.66,11.88511224]
[1768789096980,4.27836793,133.69,133.66,4.40344245]
[1768789097182,4.27836793,133.69,133.66,7.41391764]
[1768789097574,4.27836793,133.69,133.66,14.89547257]
[1768789098177,4.27836793,133.69,133.67,3.01047519]
[1768789098589,4.27836793,133.69,133.66,14.89547257]
[1768789099374,4.2183994,133.69,133.66,14.89547257]
[1768789099678,7.47887218,133.71,133.67,3.01047519]
[1768789101394,4.27836793,133.7,133.67,3.01047519]
[1768789103394,4.27836793,133.7,133.66,14.89547257]
[1768789103900,4.27836793,133.7,133.67,3.01047519]
[1768789104399,4.27836793,133.7,133.67,7.1449094]
[1768789105291,4.45124381,133.71,133.68,7.1449094]
[1768789106100,4.45124381,133.71,133.68,3.01047519]
[1768789106902,4.45124381,133.71,133.68,7.1449094]
[1768789107401,4.45124381,133.71,133.68,3.01047519]
[1768789107600,4.45124381,133.7,133.67,11.6154523]
[1768789107899,4.45124381,133.7,133.67,14.62592749]
[1768789108996,115.0291898,133.73,133.7,4.13443421]
[1768789109194,4.45124381,133.72,133.68,11.61485718]
[1768789109376,4.45124381,133.72,133.68,10.49089816]
[1768789109579,4.45124381,133.72,133.69,4.13443421]
[1768789109777,4.45124381,133.72,133.68,10.49089816]
[1768789109778,4.45124381,133.71,133.67,11.61545199]
[1768789109974,4.45124381,133.71,133.67,14.62592718]
[1768789111083,4.45124381,133.71,133.68,4.13443421]
[1768789111291,4.45124381,133.71,133.68,14.62545616]
[1768789111802,4.45124381,133.71,133.68,7.1449094]
[1768789112107,4.45124381,133.71,133.67,14.62580253]
[1768789112108,4.45124381,133.7,133.67,14.62580253]
[1768789113506,4.39124382,133.7,133.67,14.62580253]
[1768789114809,7.47854672,133.72,133.68,7.1449094]
[1768789115302,7.47775368,133.73,133.69,3.01047519]
[1768789115496,7.47775368,133.73,133.69,7.1449094]
[1768789115694,4.45124381,133.72,133.69,7.1449094]
[1768789116505,4.45124381,133.72,133.69,3.01047519]
[1768789116691,4.45124381,133.72,133.68,7.1449094]
[1768789117908,4.45124381,133.71,133.68,7.1449094]
[1768789118304,4.45124381,133.71,133.68,4.13443421]
[1768789118491,4.45124381,133.71,133.68,7.1449094]
[1768789119407,4.45124381,133.71,133.68,14.62531387]
[1768789119611,4.46068091,133.73,133.7,7.3075895]
[1768789119798,4.46068091,133.73,133.71,3.01047519]
[1768789120116,4.46068091,133.74,133.71,7.3075895]
[1768789120295,4.46068091,133.74,133.72,3.01047519]
[1768789120700,4.46068091,133.74,133.71,7.3075895]
[1768789123712,11.93821844,133.74,133.71,4.29711431]
[1768789123913,11.93821844,133.74,133.71,7.3075895]
[1768789124215,4.46068091,133.74,133.71,7.3075895]
[1768789124411,4.46068091,133.75,133.72,7.3075895]
[1768789124993,0.2,133.76,133.74,7.3075895]
[1768789127317,4.66068091,133.76,133.74,3.01047519]
[1768789128912,0.2,133.76,133.74,7.3075895]
[1768789135224,4.3342434,133.76,133.74,3.01047519]
[1768789135808,4.3342434,133.76,133.73,11.81278312]
[1768789136022,4.3342434,133.76,133.73,14.82325831]
[1768789136725,4.1342434,133.75,133.72,3.01047519]
[1768789136929,4.1342434,133.75,133.71,14.8243981]
[1768789137225,4.1342434,133.75,133.72,4.33513632]
[1768789138209,4.1342434,133.75,133.72,7.34561151]
[1768789138529,4.1342434,133.75,133.72,14.82382692]
[1768789140234,4.1342434,133.75,133.72,7.34561151]
[1768789141313,4.1342434,133.75,133.72,4.33513632]
[1768789141611,4.1342434,133.75,133.72,7.34561151]
[1768789142027,4.1342434,133.75,133.72,14.82378561]
[1768789147015,4.1342434,133.75,133.72,14.81990667]
[1768789147230,4.1342434,133.75,133.73,7.34173257]
[1768789147508,0.2,133.76,133.74,7.34173257]
[1768789148228,0.2,133.76,133.75,3.00659625]
[1768789148439,4.1342434,133.77,133.75,3.00659625]
[1768789148948,4.3342434,133.78,133.75,7.34173257]
[1768789149114,4.3342434,133.79,133.77,3.00659625]
[1768789151015,4.3342434,133.79,133.76,7.47595235]
[1768789151221,4.3342434,133.79,133.76,11.81108867]
[1768789151524,4.3342434,133.79,133.77,3.00659625]
[1768789153237,11.80865586,133.79,133.76,4.33513632]
[1768789153441,4.1342434,133.78,133.73,4.33513632]
[1768789153645,4.1342434,133.78,133.73,7.34173257]
[1768789153938,4.1342434,133.78,133.73,14.81914442]
[1768789154249,4.1342434,133.78,133.74,4.33513632]
[1768789155642,4.1342434,133.78,133.75,3.00659625]
[1768789156519,4.1342434,133.78,133.74,14.81881711]
[1768789157346,4.1342434,133.78,133.75,4.33513632]
[1768789158435,4.1342434,133.78,133.74,14.81881711]
[1768789158736,4.1342434,133.78,133.74,14.81881109]
[1768789158737,4.1342434,133.77,133.74,14.81881109]
[1768789159243,4.1342434,133.78,133.75,4.33513632]
[1768789159543,4.1342434,133.78,133.75,11.81174288]
[1768789159914,4.1342434,133.78,133.75,4.33513632]
[1768789161744,4.1342434,133.77,133.75,4.33513632]
[1768789162332,4.1342434,133.77,133.74,14.81870136]
[1768789162756,11.84235584,133.78,133.75,4.38736819]
[1768789163323,0.2,133.79,133.76,4.38736819]
[1768789163645,4.56737913,133.79,133.76,4.38736819]
[1768789164143,4.56737913,133.79,133.76,7.39396444]
[1768789164443,0.2,133.79,133.77,7.39396444]
[1768789164757,4.56737913,133.81,133.78,3.00659625]
[1768789165124,4.56737913,133.81,133.77,4.38736819]
[1768789165339,4.36737913,133.8,133.77,7.39396444]
[1768789166647,4.36737913,133.8,133.77,14.86930974]
[1768789167139,4.56737913,133.81,133.78,4.38736819]
[1768789167454,0.2,133.81,133.79,4.38736819]
[1768789167621,4.56737913,133.81,133.78,7.39396444]
[1768789168348,0.2,133.81,133.79,4.38736819]
[1768789168751,4.56737913,133.81,133.78,7.39396444]
[1768789169049,0.2,133.81,133.78,14.86877522]
[1768789169254,4.56737913,133.81,133.78,14.86877522]
[1768789171152,4.56737913,133.81,133.78,4.38736819]
[1768789171350,12.04071358,133.81,133.78,4.38736819]
[1768789171850,4.56737913,133.81,133.78,4.38736819]
[1768789180442,12.04070017,133.81,133.78,4.38736819]
[1768789180957,4.56737913,133.81,133.78,4.38736819]
[1768789181463,12.04095003,133.81,133.78,4.38736819]
[1768789185161,4.38955729,133.8,133.77,14.70387427]
[1768789185763,4.38955729,133.8,133.78,4.22190137]
[1768789187164,11.86351274,133.8,133.77,7.22849762]
[1768789188454,12.06308344,133.81,133.78,4.22190137]
[1768789188956,7.67352615,133.81,133.78,4.22190137]
[1768789189163,4.38955729,133.8,133.77,3.00659625]
[1768789189360,4.38955729,133.8,133.77,7.22849762]
[1768789192070,4.38955729,133.79,133.76,7.22849762]
[1768789192365,4.38955729,133.79,133.76,4.22190137]
[1768789192871,4.38955729,133.79,133.76,11.6978705]
[1768789193667,4.38955729,133.79,133.76,14.70446675]
[1768789194862,4.38955729,133.79,133.76,10.48256538]
[1768789195068,4.38955729,133.79,133.77,4.37646187]
[1768789197067,4.32423691,133.78,133.74,4.37646187]
[1768789197270,4.32423691,133.77,133.73,4.37646187]
[1768789198252,4.32423691,133.77,133.73,11.85383708]
[1768789199067,7.47583257,133.77,133.73,4.37646187]
[1768789199271,4.32423691,133.76,133.73,4.37646187]
[1768789200368,11.80031928,133.76,133.73,4.37646187]
[1768789200553,4.32423691,133.75,133.72,11.8546234]
[1768789201460,4.32423691,133.75,133.72,4.37646187]
[1768789201654,4.32423691,133.75,133.71,7.4787379]
[1768789201655,11.799917,133.77,133.73,4.37646187]
[1768789201855,4.32423691,133.76,133.73,11.85418414]
[1768789202775,4.32423691,133.76,133.72,11.85454087]
[1768789205160,4.32423691,133.75,133.72,11.85454087]
[1768789205457,4.26426704,133.75,133.72,11.85454087]
[1768789215986,4.32423691,133.8,133.75,4.37646187]
[1768789216172,11.79807846,133.8,133.76,4.37646187]
[1768789216369,7.47384155,133.8,133.76,4.37646187]
[1768789216575,4.32423691,133.79,133.76,4.37646187]
[1768789216783,11.7987843,133.79,133.76,4.37646187]
[1768789217388,4.32423691,133.78,133.74,7.38339395]
[1768789217591,4.32423691,133.78,133.73,14.86112672]
[1768789217785,4.32423691,133.77,133.73,11.85419464]
[1768789218292,4.32423691,133.77,133.73,14.86112672]
[1768789219092,4.32423691,133.77,133.74,3.00693208]
[1768789223175,4.32423691,133.77,133.74,7.47755749]
[1768789223395,4.26426444,133.77,133.75,3.00693208]
[1768789225298,4.26426444,133.77,133.74,14.95473208]
[1768789225481,4.26426444,133.77,133.74,4.47062541]
[1768789226082,4.41874937,133.76,133.73,7.47750005]
[1768789226382,4.41874937,133.76,133.73,11.94812546]
[1768789226595,4.41874937,133.76,133.73,14.95505754]
[1768789227385,4.41874937,133.76,133.72,14.95564275]
[1768789227976,4.41874937,133.76,133.73,4.47062541]
[1768789228983,4.41874937,133.76,133.73,11.94826172]
[1768789229302,4.41874937,133.76,133.73,14.9551938]
[1768789229782,4.41874937,133.76,133.74,3.00693208]
[1768789230385,4.41874937,133.76,133.73,11.94826172]
[1768789230602,4.41874937,133.76,133.74,3.00693208]
[1768789230898,4.41874937,133.77,133.74,14.95444416]
[1768789232299,4.35877417,133.77,133.74,14.95444416]
[1768789233388,7.47553008,133.77,133.73,3.00693208]
[1768789234001,7.47553008,133.77,133.73,7.47755749]
[1768789234183,4.41874937,133.76,133.73,14.95529172]
[1768789238505,4.41874937,133.76,133.74,3.00693208]
[1768789238912,4.41874937,133.76,133.73,14.85283079]
[1768789241907,4.41874937,133.76,133.74,3.00693208]
[1768789242500,4.22643215,133.77,133.74,7.37509656]
[1768789243606,4.22643215,133.77,133.74,14.85218727]
[1768789249118,4.22643215,133.77,133.74,11.84525519]
[1768789249318,4.22643215,133.77,133.74,14.85218727]
[1768789251016,4.22643215,133.78,133.75,7.37509656]
[1768789251331,4.22643215,133.78,133.75,3.00693208]
[1768789252309,4.22643215,133.79,133.76,7.37509656]
[1768789252533,4.22643215,133.79,133.77,3.00693208]
[1768789253331,4.4126025,133.78,133.76,3.00693208]
[1768789253932,4.4126025,133.78,133.75,14.82953771]
[1768789260133,4.4126025,133.78,133.75,11.82260563]
[1768789260322,4.4126025,133.78,133.75,14.82953771]
[1768789265336,4.4126025,133.78,133.75,11.82260563]
[1768789265634,4.4126025,133.78,133.75,10.48355329]
[1768789267315,4.4126025,133.78,133.75,14.82953771]
[1768789269736,4.4126025,133.78,133.75,11.82260563]
[1768789269924,4.4126025,133.78,133.75,14.82953771]
[1768789270242,11.88668242,133.8,133.77,4.34598442]
[1768789270415,20.9926025,133.81,133.78,7.3529165]
[1768789270614,4.4126025,133.8,133.77,3.00693208]
[1768789270915,4.4126025,133.8,133.77,3.00469402]
[1768789271328,4.4126025,133.8,133.77,7.35067844]
[1768789272016,0.2,133.81,133.79,4.34598442]
[1768789272319,4.6126025,133.81,133.78,7.35067844]
[1768789273928,12.08588753,133.81,133.78,4.34598442]
[1768789274122,4.4126025,133.8,133.77,14.82585528]
[1768789274326,4.6126025,133.81,133.79,3.00469402]
[1768789275034,4.55262444,133.81,133.79,3.00469402]
[1768789275539,0.14002194,133.81,133.79,7.35067844]
[1768789275837,0.14002194,133.81,133.8,3.00469402]
[1768789276043,4.6126025,133.82,133.8,3.00469402]
[1768789277130,4.6126025,133.82,133.79,14.82476563]
[1768789277732,4.6126025,133.82,133.8,3.00469402]
[1768789278944,0.2,133.83,133.82,4.34598442]
[1768789279249,4.6126025,133.84,133.82,3.00469402]
[1768789279933,4.6126025,133.84,133.81,7.35067844]
[1768789280523,4.4126025,133.83,133.78,4.34598442]
[1768789280731,4.4126025,133.82,133.78,7.4745641]
[1768789281148,4.4126025,133.81,133.77,7.35067844]
[1768789281333,4.4126025,133.81,133.77,4.34598442]
[1768789281729,4.4126025,133.83,133.79,4.34598442]
[1768789281952,4.4126025,133.83,133.78,14.82529553]
[1768789282144,4.4126025,133.82,133.78,7.47461709]
[1768789282447,4.4126025,133.82,133.78,11.82060151]
[1768789282837,4.40184429,133.81,133.78,7.47461709]
[1768789283238,4.40184429,133.81,133.78,7.29461709]
[1768789284828,4.40184429,133.81,133.78,11.54067088]
[1768789285029,4.35183859,133.81,133.78,11.54067088]
[1768789285548,7.67171375,133.84,133.8,4.24605379]
[1768789286329,7.67171375,133.84,133.79,4.24605379]
[1768789286950,4.40184429,133.83,133.79,11.72039175]
[1768789288534,4.60184429,133.84,133.81,4.24605379]
[1768789288734,4.60184429,133.84,133.8,4.24605379]
[1768789289224,4.60184429,133.84,133.81,4.24605379]
[1768789289429,4.5418443,133.84,133.82,4.24605379]
[1768789289642,4.5418443,133.84,133.81,4.24605379]
[1768789290257,4.5418443,133.84,133.81,11.71933013]
[1768789290636,4.5418443,133.84,133.8,11.7197894]
[1768789290833,4.5418443,133.84,133.81,7.47326362]
[1768789291055,4.5418443,133.84,133.81,11.71931741]
[1768789292048,4.5418443,133.84,133.81,4.24605379]
[1768789292473,0.14000001,133.84,133.81,4.24605379]
[1768789292637,4.5418443,133.84,133.81,14.72393729]
[1768789293349,4.5418443,133.84,133.81,11.71924327]
[1768789293657,1e-08,133.84,133.83,4.24605379]
[1768789293860,1e-08,133.86,133.84,4.24605379]
[1768789294076,4.40184429,133.88,133.85,11.71710347]
[1768789294234,4.40184429,133.88,133.85,14.72179749]
[1768789294765,4.50184429,133.89,133.85,14.72179749]
[1768789295257,4.50184429,133.89,133.85,11.71710347]
[1768789295871,4.50184429,133.89,133.85,14.72179749]
[1768789297166,4.50184429,133.89,133.85,11.71710347]
[1768789298361,4.50184429,133.89,133.86,4.29402843]
[1768789298741,4.50184429,133.89,133.85,11.76507811]
[1768789299664,4.075563,133.88,133.85,11.76507811]
[1768789302769,11.64440359,133.89,133.86,4.29402843]
[1768789303272,4.075563,133.88,133.86,4.29402843]
[1768789303451,4.075563,133.88,133.85,7.47104968]
[1768789303452,4.075563,133.88,133.85,11.76507811]
[1768789303858,4.075563,133.88,133.85,14.76977213]
[1768789305168,0.1,133.89,133.88,4.29402843]
[1768789305372,0.1,133.89,133.87,7.29872245]
[1768789306066,4.175563,133.89,133.86,4.29402843]
[1768789306368,4.175563,133.89,133.86,7.29872245]
[1768789307453,4.175563,133.89,133.86,11.76440826]
[1768789307675,4.175563,133.89,133.86,14.76910228]
[1768789308312,4.175563,133.89,133.86,3.00469402]
[1768789308456,4.175563,133.89,133.85,11.76484815]
[1768789308777,4.175563,133.89,133.86,3.00469402]
[1768789309277,4.175563,133.89,133.85,14.76954217]
[1768789309455,4.175563,133.89,133.86,4.29402843]
[1768789309657,4.175563,133.89,133.85,14.76954217]
[1768789310568,4.175563,133.89,133.86,4.29402843]
[1768789310775,4.175563,133.89,133.86,11.7644938]
[1768789311452,4.075563,133.88,133.83,4.29402843]
[1768789311651,4.075563,133.86,133.81,7.29872245]
[1768789312052,4.075563,133.86,133.82,4.29402843]
[1768789312475,4.075563,133.86,133.82,7.29872245]
[1768789314277,11.54614469,133.86,133.82,4.29402843]
[1768789314482,4.45678155,133.85,133.82,4.29402843]
[1768789315075,4.45678155,133.85,133.81,3.00469402]
[1768789315278,4.45678155,133.85,133.81,7.25069172]
[1768789315460,4.45678155,133.85,133.82,7.47266982]
[1768789315660,4.45678155,133.85,133.81,11.71908491]
[1768789316278,7.47107373,133.85,133.8,7.47359689]
[1768789316581,10.47576775,133.85,133.8,11.71959459]
[1768789317677,7.47107373,133.85,133.81,4.2459977]
[1768789318180,4.45678155,133.84,133.81,4.2459977]
[1768789318367,4.39678151,133.84,133.81,4.2459977]
[1768789318689,7.47073139,133.86,133.82,4.2459977]
[1768789319686,10.47406958,133.88,133.83,4.2459977]
[1768789319995,7.56902655,133.89,133.84,7.25069172]
[1768789320373,4.45678155,133.88,133.84,7.25069172]
[1768789321085,4.55678155,133.89,133.86,7.25069172]
[1768789321290,4.55678155,133.89,133.86,4.2459977]
[1768789322286,4.55678155,133.89,133.85,11.71681026]
[1768789322485,4.55678155,133.89,133.86,4.2459977]
[1768789322868,4.55678155,133.89,133.86,7.25069172]
[1768789323069,0.1,133.91,133.89,4.2459977]
[1768789323376,103.1,133.95,133.91,4.2459977]
[1768789323577,4.55678155,133.96,133.92,4.2459977]
[1768789324092,4.45678155,133.95,133.9,7.25069172]
[1768789324290,4.45678155,133.95,133.9,10.47246684]
[1768789324291,4.45678155,133.94,133.9,10.47246684]
[1768789324467,4.45678155,133.94,133.9,7.46777282]
[1768789325584,7.46559572,133.95,133.91,4.2459977]
[1768789325884,0.1,133.96,133.93,7.25069172]
[1768789326086,0.1,133.96,133.94,4.2459977]
[1768789326287,0.1,133.96,133.92,7.25069172]
[1768789326288,4.55678155,133.96,133.92,7.25069172]
[1768789326473,4.55678155,133.96,133.92,4.2459977]
[1768789327292,4.55678155,133.96,133.92,11.71294909]
[1768789328273,4.55678155,133.96,133.93,4.2459977]
[1768789328472,4.55678155,133.96,133.93,3.00469402]
[1768789328672,4.55678155,133.96,133.92,7.25069172]
[1768789328990,4.55678155,133.96,133.92,4.2459977]
[1768789329187,4.55678155,133.96,133.93,3.00469402]
[1768789329388,0.1,133.96,133.93,7.25069172]
[1768789329774,4.55678155,133.96,133.93,4.2459977]
[1768789330071,4.55678155,133.96,133.93,7.25069172]
[1768789330273,4.55678155,133.96,133.93,4.2459977]
[1768789330493,4.55678155,133.96,133.92,14.71741601]
[1768789330991,4.55678155,133.96,133.93,11.71248516]
[1768789331178,3.99702012,134.05,133.96,1.45924765]
[1768789331382,3.0975339,134.03,133.97,1.45924765]
[1768789331580,0.1,134.03,133.97,1.45924765]
[1768789331777,0.1,134.03,133.96,4.45678155]
[1768789331972,2.9975339,134.02,133.96,1.45924765]
[1768789332403,2.9975339,134.01,133.94,11.92261784]
[1768789332574,2.9975339,134.0,133.93,39.4832491]
[1768789332774,26.11550513,134.02,133.94,4.45678155]
[1768789332975,2.9975339,134.0,133.94,4.45678155]
[1768789333170,4.45678155,133.99,133.94,4.45678155]
[1768789333602,4.45678155,133.99,133.93,35.02646755]
[1768789333603,4.45678155,134.02,133.98,2.9975339]
[1768789334195,4.45678155,134.02,133.96,26.12711394]
[1768789334196,4.45678155,134.02,133.96,27.58636159]
[1768789334376,4.45678155,134.02,133.94,22.39892485]
[1768789334377,4.45678155,134.02,133.99,10.46077742]
[1768789334576,0.1,134.03,134.0,4.45678155]
[1768789334798,1e-08,134.03,134.02,2.9975339]
[1768789335101,0.1,134.05,134.02,4.45678155]
[1768789335297,0.1,134.05,134.03,2.9975339]
[1768789335596,1e-08,134.05,134.03,2.9975339]
[1768789336097,4.45678155,134.1,134.05,1.45924765]
[1768789336286,4.45678155,134.1,134.01,16.36]
[1768789336287,4.45678155,134.1,134.08,2.9975339]
[1768789336491,23.10147666,134.11,134.07,11.91542575]
[1768789336800,23.10147666,134.11,134.08,2.9975339]
[1768789337009,4.45678155,134.1,134.06,7.45928143]
[1768789337175,4.45678155,134.1,134.07,2.9975339]
[1768789337978,4.45678155,134.1,134.07,7.45873061]
[1768789338179,4.45678155,134.1,134.06,7.45922447]
[1768789338382,4.45678155,134.09,134.05,10.45706544]
[1768789338679,4.45678155,134.09,134.05,7.45953154]
[1768789338883,4.45678155,134.09,134.04,4.45678155]
[1768789339079,4.45678155,134.09,134.04,11.91711118]
[1768789339302,4.45678155,134.08,134.03,10.45854249]
[1768789339992,4.45678155,134.08,134.03,11.91779014]
[1768789340194,4.45678155,134.08,134.02,1.45924765]
[1768789340396,4.45678155,134.08,134.04,2.9975339]
[1768789340696,4.45678155,134.08,134.06,2.9975339]
[1768789341196,11.9140118,134.1,134.06,2.9975339]
[1768789341395,4.45678155,134.09,134.05,2.9975339]
[1768789342485,4.28908451,134.08,134.04,11.91697047]
[1768789342796,4.28908451,134.08,134.03,11.91768582]
[1768789342994,4.28908451,134.08,134.03,7.46090427]
[1768789343179,4.28908451,134.08,134.03,7.46096967]
[1768789343578,4.28908451,134.08,134.03,8.92021732]
[1768789344008,4.28908451,134.08,134.03,11.91775122]
[1768789344807,11.74744046,134.08,134.03,11.91775122]
[1768789345007,4.28908451,134.07,134.04,2.9975339]
[1768789346005,4.28908451,134.07,134.03,11.91775122]
[1768789346687,4.28908451,134.06,134.02,10.45895446]
[1768789347320,4.28908451,134.05,134.0,7.46217846]
[1768789347608,4.28908451,134.04,134.0,7.46217846]
[1768789347811,4.28908451,134.04,134.01,7.46211486]
[1768789348607,4.28908451,134.03,133.98,2.9975339]
[1768789349006,4.28908451,134.03,133.98,10.46096795]
[1768789349219,4.28908451,134.03,133.98,11.9202156]
[1768789349519,4.28908451,134.03,134.0,2.9975339]
[1768789349897,4.28908451,134.03,134.0,10.46002376]
[1768789350632,4.28908451,134.01,133.97,11.92079068]
[1768789350815,4.28908451,134.01,133.98,7.46371525]
[1768789351121,4.28908451,134.03,134.0,7.46267378]
[1768789351323,4.28908451,134.03,134.0,10.46020768]
[1768789352216,4.28908451,134.03,134.0,7.46267378]
[1768789352424,4.28908451,134.03,133.99,7.46305321]
[1768789352728,4.28908451,134.03,134.0,7.4626835]
[1768789353226,7.46049483,134.04,134.0,10.4602174]
[1768789353402,11.74957934,134.04,134.0,11.91946505]
[1768789354027,4.28908451,134.04,134.0,11.91946505]
[1768789354227,121.74749359,134.07,134.02,2.9975339]
[1768789354228,4.28908451,134.05,134.02,2.9975339]
[1768789354607,4.28908451,134.05,134.01,1.45924765]
[1768789354808,4.28908451,134.07,134.03,2.9975339]
[1768789355030,4.28908451,134.07,134.02,1.45924765]
[1768789355208,4.28908451,134.07,134.02,4.45678155]
[1768789356907,4.28908451,134.06,134.02,11.91802167]
[1768789358635,4.28908451,134.06,134.02,8.92048777]
[1768789359016,4.28908451,134.06,134.02,11.91802167]
[1768789359433,11.7484736,134.06,134.02,2.9975339]
[1768789359613,4.41972647,134.05,134.01,10.45959994]
[1768789359814,4.41972647,134.05,134.01,11.91884759]
[1768789361332,4.41972647,134.05,134.01,8.92131369]
[1768789361524,4.41972647,134.05,134.01,11.91884759]
[1768789362340,4.41972647,134.06,134.02,4.45678155]
[1768789362540,4.41972647,134.07,134.03,4.45678155]
[1768789363034,4.41972647,134.07,134.03,2.9975339]
[1768789363841,4.41972647,134.07,134.03,10.4583263]
[1768789364027,4.41972647,134.07,134.03,7.4607924]
[1768789364733,4.41972647,134.07,134.03,10.4583263]
[1768789365119,4.41972647,134.07,134.03,4.45678155]
[1768789365450,4.41972647,134.07,134.04,2.9975339]
[1768789365622,4.41972647,134.09,134.05,4.45678155]
[1768789365822,4.41972647,134.09,134.04,2.9975339]
[1768789366235,2.9975339,134.09,134.04,2.9975339]
[1768789366434,4.41972647,134.08,134.04,2.9975339]
[1768789366832,11.87806107,134.08,134.04,2.9975339]
[1768789367146,11.87806107,134.08,134.04,10.45799044]
[1768789369149,4.41972647,134.08,134.04,10.45799044]
[1768789369339,4.41972647,134.08,134.06,2.9975339]
[1768789370036,4.41972647,134.08,134.04,8.91970419]
[1768789370233,4.41972647,134.08,134.06,2.9975339]
[1768789371626,4.41972647,134.08,134.06,10.45686799]
[1768789371943,4.41972647,134.08,134.06,2.9975339]
[1768789372346,4.41972647,134.08,134.05,10.4572514]
[1768789372542,33.55572229,134.11,134.06,7.45905464]
[1768789373341,30.55818839,134.11,134.06,7.45905464]
[1768789373536,23.10147666,134.11,134.08,2.9975339]
[1768789374249,30.55807942,134.11,134.06,11.8865038]
[1768789374457,30.55807942,134.11,134.06,14.8840377]
[1768789374756,4.06635379,134.1,134.06,14.8840377]
[1768789375462,4.06635379,134.1,134.07,4.42744916]
[1768789375956,4.06635379,134.1,134.07,14.88369486]
[1768789376159,30.55807942,134.11,134.08,2.9975339]
[1768789376160,34.62443321,134.11,134.08,2.9975339]
[1768789376659,34.60439321,134.11,134.07,14.88369486]
[1768789376860,23.08143666,134.11,134.08,7.42498306]
[1768789377552,23.08143666,134.11,134.08,4.42744916]
[1768789377768,23.08143666,134.11,134.08,14.8830689]
[1768789378057,27.14779045,134.11,134.08,14.8830689]
[1768789379341,27.14779045,134.11,134.08,7.42498306]
[1768789379657,27.14779045,134.11,134.07,10.45613227]
[1768789380359,4.06635379,134.1,134.05,2.9975339]
[1768789380658,4.06635379,134.1,134.05,7.42498306]
[1768789381043,4.06635379,134.1,134.06,11.88679451]
[1768789381563,11.52354453,134.1,134.06,11.88679451]
[1768789381766,11.52354453,134.1,134.06,4.42744916]
[1768789381959,4.06635379,134.09,134.05,14.8847009]
[1768789382652,4.06635379,134.08,134.04,10.45777758]
[1768789382864,4.06635379,134.08,134.04,7.46024368]
[1768789383061,4.06635379,134.06,134.01,7.42498306]